{"text_format":"1","workbook":"xlsx","n_sheets":3,"sheets":["Intro","Main","Working"],"not_rendered":{"charts":0,"images":0,"macros":1,"external_links":0,"defined_names":4,"comments":0,"pivot_tables":0},"unopened":[],"bounds":{"document_bytes":16777216,"sheet_cells":100000,"rows_first":2000,"rows_last":500,"rows_between":2000,"halvings":0,"cell_chars":16384,"cell_head_chars":4096},"cells_cut":0,"cells_raw":0,"read":"whole","date_system":"1900"}

{"sheet":"Intro","index":0,"n_rows":12,"n_cols":10,"rows_kept":12,"cut":false,"hidden":false,"merged":[[4,0,9,9]]}
[]
[]
["COMPLEX GUESS",null,null," (Version 3.0)",null,null,null,null,null,"by Shehzad-ul-Haq"]
[]
["The game has a very simple objective; you have to guess a number from 1 to 100 in 10 attempts. Each time before you make an attempt, the computer gives you 2 clues at random, suggesting ranges and if you are lucky enough the number itself. With that many clues it should not be any difficult task to guess the number. However, the problem lies that only one of the two clues the computer suggests each time, is correct. And unfortuately you have to identify true clues by analysing different clues to accomplish your task. To add to your frustration, the computer hints are random and have no relevance to your guesses."]
[]
[]
[]
[]
[]
[]
["An interesting, addictive game and a good office diversion."]

{"sheet":"Main","index":1,"n_rows":6,"n_cols":5,"rows_kept":6,"cut":false,"hidden":false,"merged":[[30,1,30,3]]}
[]
[null,{"$f":"\"Try: \" &Try&\"/10\"","v":"Try: 1/10"}]
[]
[false,"Clue 1",null,"Clue 2",true]
[]
[true,"The number is more than days in a week",null,"The number is a perfect cube",false]

{"sheet":"Working","index":2,"n_rows":63,"n_cols":12,"rows_kept":63,"cut":false,"hidden":false,"merged":[]}
[]
[null,"Number",80,null,"Guess list",{"$f":"COUNTA(A7:A56)","v":50},null,"Cell Shading",2]
[null,"Guess",{"$f":"Main!C2","v":0}]
[null,"Try",1]
[]
[null,"Random Suggestion",null,"Check1","Check2"]
["Your guess is more than twice",null,{"$f":"A7&B7","v":"Your guess is more than twice"},null,{"$f":"Guess/2>Number","v":false},null,null,null,null,"True statement",{"$f":"COUNTIF(E7:E56,\"TRUE\")","v":0},{"$f":"K7/GList","v":0}]
["Your guess is more than 3 times",null,"Your guess is more than 3 times",null,{"$f":"Guess/3>Number","v":false},null,null,null,null,"False statement",{"$f":"COUNTIF(E7:E56,\"FALSE\")","v":0},{"$f":"K8/GList","v":0}]
["Your guess is more than 5 times",null,"Your guess is more than 5 times",null,{"$f":"Guess/5>Number","v":false}]
["Your guess is more than 10 times",null,"Your guess is more than 10 times",null,{"$f":"Guess/10>Number","v":false},null,null,null,null,null,{"$f":"SUM(K7:K9)","v":0},{"$f":"SUM(L7:L9)","v":0}]
["Your guess is less than twice",null,"Your guess is less than twice",null,{"$f":"Guess*2<Number","v":true}]
["Your guess is less than 3 times",null,"Your guess is less than 3 times",null,{"$f":"Guess*3<Number","v":true}]
["Your guess is less than 5 times",null,"Your guess is less than 5 times",null,{"$f":"Guess*5<Number","v":true}]
["Your guess is less than 10 times",null,"Your guess is less than 10 times",null,{"$f":"Guess*10<Number","v":true}]
["One of the digit(s) is correct",null,{"$f":"A15&B15","v":"One of the digit(s) is correct"},null,{"$f":"OR(LEFT(Number,1)=LEFT(Guess,1),LEFT(Number,1)=RIGHT(Guess,1),RIGHT(Number,1)=LEFT(Guess,1),RIGHT(Number,1)=RIGHT(Guess,1))","v":true}]
["One of the digit(s) is correct and in right place",null,{"$f":"A16&B16","v":"One of the digit(s) is correct and in right place"},null,{"$f":"OR(LEFT(Number,1)=LEFT(Guess,1),RIGHT(Number,1)=RIGHT(Guess,1))","v":true}]
["The number is greater than ",{"$f":"ROUND(RAND()*100,0)","v":66},{"$f":"A17&B17","v":"The number is greater than 66"},null,{"$f":"Number>B17","v":true}]
["The number is lower than ",{"$f":"B17+1","v":67},"The number is lower than 67",null,{"$f":"Number<B18","v":false}]
["The number is an odd number",null,"The number is an odd number",null,{"$f":"INT(Number/2)<>Number/2","v":false}]
["The number is an even number",null,"The number is an even number",null,{"$f":"INT(Number/2)=Number/2","v":true}]
["The number is a prime number",null,"The number is a prime number",null,{"$f":"OR(Number=2,Number=3,Number=5,Number=7,Number=11,Number=13,Number=17,Number=19,Number=23,Number=29,Number=31,Number=37,Number=41,Number=43,Number=47,Number=53,Number=59,Number=61,Number=67,Number=71,Number=73,Number=79,Number=83,Number=89,Number=97)","v":false}]
["The number is a perfect number",null,"The number is a perfect number",null,{"$f":"OR(Number=6,Number=28)","v":false}]
["The number is a perfect square",null,"The number is a perfect square",null,{"$f":"INT(SQRT(Number))=SQRT(Number)","v":false}]
["The number is a perfect cube",null,"The number is a perfect cube","T",{"$f":"OR(Number=1,Number=8,Number=27,Number=64)","v":false}]
["The number can be counted in dozen(s)",null,{"$f":"A25&B25","v":"The number can be counted in dozen(s)"},null,{"$f":"INT(Number/12)=Number/12","v":false}]
["The number is thought to be unlucky",null,"The number is thought to be unlucky",null,{"$f":"Number=13","v":false}]
["The number is a multiple of ",{"$f":"ROUND(RAND()*10,0)+1","v":3},"The number is a multiple of 3",null,{"$f":"INT(Number/B27)=Number/B27","v":false}]
["The number is divisible by ",{"$f":"B27","v":3},"The number is divisible by 3",null,{"$f":"INT(Number/B28)=Number/B28","v":false}]
["The number is ",{"$f":"ROUND(RAND()*100,0)","v":56},"The number is 56",null,{"$f":"Number=B29","v":false}]
["The number is on a dial pad of a phone",null,"The number is on a dial pad of a phone",null,{"$f":"AND(Number>=0,Number<=9)","v":false}]
["The number is less than the cards in a pack",null,"The number is less than the cards in a pack",null,{"$f":"Number<52","v":false}]
["The number is more than hours in a day",null,"The number is more than hours in a day",null,{"$f":"Number>24","v":true}]
["The number is more than days in a week",null,"The number is more than days in a week","T",{"$f":"Number>7","v":true}]
["The number is more than weeks in a year",null,"The number is more than weeks in a year",null,{"$f":"Number>52","v":true}]
["The number is more than months in a year",null,"The number is more than months in a year",null,{"$f":"Number>12","v":true}]
["Years of world wars (I and II)?",null,"Years of world wars (I and II)?",null,{"$f":"OR(AND(Number>=14,Number<=18),AND(Number>=39,Number<=45))","v":false}]
["The number is greater than english alphabets",null,"The number is greater than english alphabets",null,{"$f":"Number>26","v":true}]
["The number remains same even if its digits are swaped",null,"The number remains same even if its digits are swaped",null,{"$f":"INT(Number/11)=Number/11","v":false}]
["Sum of its digits is 9",null,{"$f":"A39&B39","v":"Sum of its digits is 9"},null,{"$f":"INT(Number/9)=Number/9","v":false}]
["Sum of its digits is 8",null,"Sum of its digits is 8",null,{"$f":"OR(Number=8,Number=17,Number=26,Number=35,Number=44,Number=53,Number=62,Number=71,Number=80)","v":true}]
["Sum of its digits is 7",null,"Sum of its digits is 7",null,{"$f":"OR(Number=7,Number=16,Number=25,Number=34,Number=43,Number=52,Number=61,Number=70)","v":false}]
["Sum of its digits is 6",null,"Sum of its digits is 6",null,{"$f":"OR(Number=6,Number=15,Number=24,Number=33,Number=42,Number=51,Number=60)","v":false}]
["Sum of its digits is 5",null,"Sum of its digits is 5",null,{"$f":"OR(Number=5,Number=14,Number=23,Number=32,Number=41,Number=50)","v":false}]
["Sum of its digits is 4",null,"Sum of its digits is 4",null,{"$f":"OR(Number=4,Number=13,Number=22,Number=31,Number=40)","v":false}]
["It’s a two digit number",null,{"$f":"A45&B45","v":"It’s a two digit number"},null,{"$f":"Number>9","v":true}]
["One of the digits is 0",null,{"$f":"A46&B46","v":"One of the digits is 0"},null,{"$f":"INT(Number/10)=Number/10","v":true}]
["One of the digit(s) is 1",null,{"$f":"A47&B47","v":"One of the digit(s) is 1"},null,{"$f":"OR(VALUE(LEFT(Number,1))=1,VALUE(RIGHT(Number,1))=1)","v":false}]
["One of the digit(s) is 2",null,"One of the digit(s) is 2",null,{"$f":"OR(VALUE(LEFT(Number,1))=2,VALUE(RIGHT(Number,1))=2)","v":false}]
["One of the digit(s) is 3",null,"One of the digit(s) is 3",null,{"$f":"OR(VALUE(LEFT(Number,1))=3,VALUE(RIGHT(Number,1))=3)","v":false}]
["One of the digit(s) is 4",null,"One of the digit(s) is 4",null,{"$f":"OR(VALUE(LEFT(Number,1))=4,VALUE(RIGHT(Number,1))=4)","v":false}]
["One of the digit(s) is 5",null,"One of the digit(s) is 5",null,{"$f":"OR(VALUE(LEFT(Number,1))=5,VALUE(RIGHT(Number,1))=5)","v":false}]
["One of the digit(s) is 6",null,"One of the digit(s) is 6",null,{"$f":"OR(VALUE(LEFT(Number,1))=6,VALUE(RIGHT(Number,1))=6)","v":false}]
["One of the digit(s) is 7",null,"One of the digit(s) is 7",null,{"$f":"OR(VALUE(LEFT(Number,1))=7,VALUE(RIGHT(Number,1))=7)","v":false}]
["One of the digit(s) is 8",null,"One of the digit(s) is 8",null,{"$f":"OR(VALUE(LEFT(Number,1))=8,VALUE(RIGHT(Number,1))=8)","v":true}]
["One of the digit(s) is 9",null,"One of the digit(s) is 9",null,{"$f":"OR(VALUE(LEFT(Number,1))=9,VALUE(RIGHT(Number,1))=9)","v":false}]
["The number is a teen",null,{"$f":"A56&B56","v":"The number is a teen"},null,{"$f":"AND(Number>=13,Number<=19)","v":false}]
[]
[]
[]
[]
[]
[]
[null,null,null,{"$f":"COUNTIF(D7:D61,\"T\")","v":2}]